bitfinex-derivatives/quotes_SOLF0:USTF0_20251125
["timestamp","ask_amount","ask_price","bid_price","bid_amount"]
[1764084049688,3.2,133.62,133.53,8.52220876]
[1764084049991,3.25001838,133.59,133.56,0.05285916]
[1764084050189,3.25001838,133.59,133.49,64.55]
[1764084050190,3.2,133.56,133.49,64.55]
[1764084050488,3.2,133.55,133.48,2.55]
[1764084050988,9.9424,133.55,133.48,2.55]
[1764084051194,0.04963374,133.53,133.49,2.55]
[1764084052796,0.04963374,133.53,133.49,8.52220876]
[1764084052986,0.04963374,133.53,133.5,2.55]
[1764084053389,9.94,133.6,133.52,9.2937]
[1764084053592,9.94,133.6,133.51,62.0]
[1764084053593,104.8639,133.57,133.51,62.0]
[1764084053800,3.2,133.56,133.49,26.12]
[1764084054387,0.05161043,133.54,133.51,0.05129448]
[1764084054792,9.99441043,133.54,133.51,0.05129448]
[1764084055183,3.25161043,133.54,133.51,0.05129448]
[1764084055589,0.05161043,133.54,133.51,0.05129448]
[1764084055888,3.2,133.52,133.51,0.05129448]
[1764084056092,3.2,133.51,133.41,2.55]
[1764084056295,3.2,133.5,133.42,2.55]
[1764084056484,6.7445,133.51,133.43,2.55]
[1764084056799,3.2,133.53,133.44,2.55]
[1764084056992,9.9434,133.53,133.45,9.297]
[1764084057196,0.0488339,133.5,133.46,2.55]
[1764084058198,3.2488339,133.5,133.43,84.21667266]
[1764084058490,3.2488339,133.5,133.43,62.0]
[1764084059197,3.2488339,133.5,133.42,28.67]
[1764084059596,3.2488339,133.5,133.42,2.55]
[1764084059899,6.7454,133.49,133.42,2.55]
[1764084060096,0.05420591,133.47,133.42,2.55]
[1764084060296,3.27420591,133.47,133.42,2.55]
[1764084060500,3.27420591,133.47,133.39,5.97220876]
[1764084060501,3.27420591,133.47,133.39,32.09220876]
[1764084060691,0.05420591,133.47,133.4,2.55]
[1764084060893,0.05420591,133.47,133.43,2.55]
[1764084061201,3.27420591,133.47,133.39,57.00643231]
[1764084061400,3.27420591,133.47,133.4,8.52220876]
[1764084061592,3.27420591,133.47,133.41,2.55]
[1764084061784,3.22,133.46,133.39,22.34422355]
[1764084061990,108.23906456,133.44,133.37,2.55]
[1764084062193,108.2008,133.43,133.37,2.55]
[1764084062398,6.7497,133.41,133.34,2.55]
[1764084062605,0.04755598,133.39,133.34,2.55]
[1764084062787,0.04755598,133.39,133.34,23.05920818]
[1764084062991,0.04755598,133.39,133.35,2.55]
[1764084063191,104.9623,133.45,133.35,2.55]
[1764084063192,0.0472931,133.38,133.35,8.52220876]
[1764084063402,0.05489779,133.38,133.36,2.55]
[1764084063594,0.05489779,133.38,133.37,2.55]
[1764084064096,3.22,133.45,133.37,2.55]
[1764084064699,3.22,133.47,133.37,2.55]
[1764084065094,0.05213223,133.43,133.41,0.05343234]
[1764084065593,0.05213223,133.43,133.41,2.60343234]
[1764084066705,0.05213223,133.43,133.41,0.05343234]
[1764084066905,0.05213223,133.43,133.41,2.60343234]
[1764084067802,0.05213223,133.43,133.41,9.35253234]
[1764084068003,0.05213223,133.43,133.42,2.55]
[1764084069096,110.86960876,133.53,133.42,2.55]
[1764084069400,3.22,133.52,133.42,2.55]
[1764084069604,3.22,133.52,133.43,2.55]
[1764084070107,3.22,133.52,133.44,6.7475]
[1764084070307,3.22,133.52,133.46,2.60023059]
[1764084070308,0.04725037,133.49,133.46,2.60023059]
[1764084070703,0.04725037,133.49,133.47,9.2958]
[1764084070903,3.22,133.56,133.48,2.55]
[1764084071305,3.22,133.56,133.49,107.4755]
[1764084071508,3.22,133.59,133.5,2.55]
[1764084071701,3.22,133.59,133.52,6.7436]
[1764084072008,0.05018421,133.57,133.55,2.55]
[1764084072304,0.04828102,133.57,133.56,6.7415]
[1764084072503,0.04828102,133.57,133.55,2.60009215]
[1764084072504,0.04828102,133.57,133.55,0.05009215]
[1764084072903,0.04828102,133.57,133.55,9.34209215]
[1764084073207,3.22,133.64,133.56,2.55]
[1764084073406,3.22,133.64,133.57,2.55]
[1764084074002,3.22,133.64,133.57,107.408]
[1764084074309,3.27574454,133.62,133.59,0.05610051]
[1764084074507,3.27448172,133.62,133.59,0.04980742]
[1764084075207,0.05448172,133.62,133.59,2.59980742]
[1764084076007,3.27448172,133.62,133.59,0.04980742]
[1764084077315,10.01338172,133.62,133.59,0.04980742]
[1764084077501,2.94,133.61,133.59,0.04980742]
[1764084077901,2.94,133.6,133.59,0.04980742]
[1764084078105,2.99448172,133.62,133.59,0.04980742]
[1764084079606,2.94,133.61,133.59,0.04980742]
[1764084080102,9.6794,133.61,133.59,0.04980742]
[1764084080305,9.6794,133.61,133.54,28.71]
[1764084080306,2.94,133.6,133.54,2.55]
[1764084080611,6.7394,133.61,133.54,2.55]
[1764084080813,2.94,133.6,133.52,5.97220876]
[1764084081309,0.05534575,133.57,133.55,2.60499106]
[1764084082104,2.94,133.64,133.56,2.55]
[1764084082710,2.94,133.64,133.56,28.71]
[1764084083212,0.04766668,133.61,133.59,2.55229811]
[1764084083517,0.05487393,133.61,133.59,0.05229811]
[1764084084110,0.05487393,133.61,133.59,2.55229811]
[1764084084311,2.94,133.69,133.6,2.45]
[1764084084914,2.94,133.68,133.6,2.45]
[1764084085107,6.7367,133.66,133.6,2.45]
[1764084085306,0.05270398,133.64,133.62,2.50691218]
[1764084085719,6.7347,133.7,133.62,2.50691218]
[1764084086012,6.7347,133.7,133.62,2.45]
[1764084086420,9.6753,133.69,133.62,2.45]
[1764084086608,2.94,133.69,133.62,2.45]
[1764084086809,2.99120933,133.67,133.64,0.05244989]
[1764084087009,2.94,133.66,133.58,2.45]
[1764084087213,107.7365,133.66,133.58,2.45]
[1764084087513,107.7365,133.66,133.52,104.8966]
[1764084087514,2.94,133.61,133.52,2.45]
[1764084088103,2.98925641,133.58,133.55,0.05112644]
[1764084088413,0.04925641,133.58,133.55,2.50112644]
[1764084089313,0.04925641,133.58,133.57,2.45]
[1764084090019,0.04925641,133.58,133.55,90.68112644]
[1764084090314,0.04925641,133.58,133.56,2.45]
[1764084090713,2.98925641,133.58,133.55,0.05112644]
[1764084090914,0.04925641,133.58,133.55,0.05112644]
[1764084091425,0.04925641,133.58,133.55,2.50112644]
[1764084092618,0.04925641,133.58,133.56,2.45]
[1764084092815,0.04925641,133.58,133.55,0.05112644]
[1764084093415,2.98925641,133.58,133.55,0.05112644]
[1764084094505,2.94,133.56,133.47,2.45]
[1764084094716,2.94,133.54,133.47,2.45]
[1764084094918,2.94,133.54,133.48,6.7456]
[1764084095114,2.94,133.54,133.47,2.45]
[1764084095313,2.94,133.54,133.45,55.12270676]
[1764084095314,2.94,133.54,133.45,5.97220876]
[1764084095522,0.05108377,133.51,133.48,0.0522248]
[1764084096425,2.99108377,133.51,133.48,0.0522248]
[1764084096623,0.05108377,133.51,133.48,2.5522248]
[1764084096927,2.99108377,133.51,133.48,0.0522248]
[1764084097220,0.05108377,133.51,133.48,2.5522248]
[1764084097817,0.05108377,133.51,133.48,9.2978248]
[1764084098321,0.05108377,133.51,133.49,2.5]
[1764084098517,26.18,133.58,133.5,2.5]
[1764084098717,2.94,133.59,133.5,2.5]
[1764084099024,2.94,133.59,133.51,6.7437]
[1764084099612,0.0521695,133.56,133.54,0.05435993]
[1764084100426,0.0521695,133.56,133.54,2.55435993]
[1764084100724,2.9921695,133.56,133.54,0.05435993]
[1764084101119,0.0521695,133.56,133.54,0.05435993]
[1764084102121,2.9921695,133.56,133.54,0.05435993]
[1764084102430,2.9921695,133.56,133.49,2.5]
[1764084103023,2.9921695,133.56,133.5,2.5]
[1764084103024,0.0521695,133.56,133.5,2.5]
[1764084103329,0.0521695,133.56,133.51,2.5]
[1764084103524,0.0521695,133.56,133.53,2.5]
[1764084103726,0.0521695,133.56,133.54,2.5]
[1764084103927,2.94,133.63,133.55,107.3787]
[1764084104131,9.6783,133.63,133.57,6.741]
[1764084104321,9.6783,133.63,133.53,26.18]
[1764084104322,2.94,133.63,133.53,26.18]
[1764084104527,2.94,133.62,133.52,28.68]
[1764084104729,2.94,133.62,133.53,2.5]
[1764084105033,2.99476515,133.58,133.56,0.05273784]
[1764084105724,9.73556515,133.58,133.56,0.05273784]
[1764084105928,2.94,133.57,133.5,2.5]
[1764084106524,6.7424,133.55,133.5,2.5]
[1764084107035,0.04867322,133.54,133.51,0.04926556]
[1764084107834,0.04867322,133.54,133.51,2.54926556]
[1764084109138,0.04867322,133.54,133.51,0.04926556]
[1764084111837,2.96867322,133.54,133.51,0.04926556]
[1764084112337,0.04867322,133.54,133.51,0.04926556]
[1764084112532,0.04867322,133.54,133.51,2.54926556]
[1764084112733,0.04867322,133.54,133.53,2.5]
[1764084113640,0.04867322,133.54,133.51,0.04926556]
[1764084113641,0.04867322,133.54,133.51,2.54926556]
[1764084114433,0.04867322,133.54,133.51,0.04926556]
[1764084115438,0.04867322,133.54,133.51,9.29336556]
[1764084115651,0.04867322,133.54,133.52,2.5]
[1764084116040,2.92,133.6,133.53,2.5]
[1764084116739,9.6597,133.6,133.54,6.7424]
[1764084117037,0.05481557,133.58,133.56,0.05753072]
[1764084117845,2.97481557,133.58,133.56,0.05753072]
[1764084118537,0.05481557,133.58,133.56,0.05753072]
[1764084119732,2.97481557,133.58,133.56,0.05753072]
[1764084120545,2.92,133.63,133.56,2.55753072]
[1764084120850,2.92,133.7,133.62,2.5]
[1764084121142,2.92,133.73,133.64,107.3046]
[1764084121444,2.92,133.76,133.67,107.2816]
[1764084121641,0.05737311,133.73,133.71,2.5]
[1764084121844,2.92,133.8,133.72,28.64]
[1764084122143,2.92,133.84,133.74,2.5]
[1764084122452,104.6032,133.91,133.78,2.5]
[1764084122743,2.92,133.93,133.82,2.5]
[1764084122946,2.92,133.93,133.83,2.5]
[1764084123144,2.92,133.93,133.84,26.16]
[1764084123343,107.5041,133.93,133.84,26.16]
[1764084123544,2.92,133.92,133.84,26.16]
[1764084123741,107.5447,133.88,133.79,28.64]
[1764084123937,2.92,133.87,133.79,28.64]
[1764084124140,104.6059,133.9,133.74,28.64]
[1764084124141,2.92,133.83,133.74,28.64]
[1764084125246,2.92,133.83,133.77,0.05020402]
[1764084125247,0.05574097,133.8,133.77,0.05020402]
[1764084125444,0.05574097,133.8,133.77,2.60020402]
[1764084125839,0.05574097,133.8,133.77,0.05020402]
[1764084126242,2.97574097,133.8,133.77,0.05020402]
[1764084127353,2.92,133.79,133.69,2.55]
[1764084127551,2.92,133.79,133.69,28.69]
[1764084128345,0.05200129,133.75,133.73,0.054055]
[1764084129154,2.97200129,133.75,133.73,0.054055]
[1764084130051,0.05200129,133.75,133.73,0.054055]
[1764084130646,0.05200129,133.75,133.73,2.604055]
[1764084130848,2.97200129,133.75,133.73,0.054055]
[1764084131855,107.6533,133.74,133.64,2.55]
[1764084132058,2.92,133.72,133.64,2.55]
[1764084132353,2.92,133.72,133.65,2.55]
[1764084133053,2.92,133.72,133.62,26.12]
[1764084133054,2.97205812,133.7,133.67,0.05751776]
[1764084133259,2.92,133.69,133.67,0.05751776]
[1764084133556,0.05205812,133.7,133.67,2.60751776]
[1764084134756,0.05205812,133.7,133.68,2.55]
[1764084135161,0.05205812,133.7,133.67,0.05751776]
[1764084135457,2.92,133.69,133.67,0.05751776]
[1764084136254,9.6555,133.69,133.67,0.05751776]
[1764084136761,2.97205812,133.7,133.67,0.05751776]
[1764084137459,107.73385812,133.7,133.67,0.05751776]
[1764084137646,0.05205812,133.7,133.67,0.05751776]
[1764084137962,3.24205812,133.7,133.67,0.05751776]
[1764084139750,3.19,133.68,133.61,64.6]
[1764084140151,9.9247,133.7,133.62,2.6]
[1764084140864,0.05456874,133.67,133.65,0.04916703]
[1764084141158,3.24456874,133.67,133.65,0.04916703]
[1764084141959,3.24456874,133.67,133.58,9.3404]
[1764084142153,3.19,133.67,133.58,9.3404]
[1764084143047,3.24399429,133.64,133.61,0.05508784]
[1764084143753,3.24399429,133.64,133.55,187.10944161]
[1764084144049,9.929,133.62,133.55,187.10944161]
[1764084144249,3.19,133.61,133.55,187.10944161]
[1764084144666,3.24223704,133.59,133.57,0.0523504]
[1764084145659,3.19,133.58,133.48,133.7967]
[1764084145859,3.19,133.58,133.48,156.34165729]
[1764084146362,3.19,133.57,133.5,6.7447]
[1764084146558,0.05720262,133.55,133.52,0.03675968]
[1764084146864,3.24720262,133.55,133.52,0.03675968]
[1764084147553,0.05720262,133.55,133.52,0.03675968]
[1764084147955,0.05720262,133.55,133.52,2.74675968]
[1764084148150,3.19,133.63,133.53,107.6022]
[1764084148352,3.19,133.59,133.48,25.25495729]
[1764084148554,9.9313,133.57,133.49,68.7449]
[1764084148865,3.19,133.56,133.49,68.7449]
[1764084149058,0.05662089,133.54,133.51,0.05020116]
[1764084149654,0.05662089,133.54,133.51,2.76020116]
[1764084150457,118.2708,133.66,133.53,2.71]
[1764084150458,3.19,133.6,133.53,2.71]
[1764084151457,3.24224734,133.58,133.55,0.04875294]
[1764084151760,3.2380142,133.58,133.55,0.04948516]
[1764084152355,9.9788142,133.58,133.55,0.04948516]
[1764084152556,3.19,133.57,133.55,0.04948516]
[1764084154156,3.19,133.57,133.49,2.71]
[1764084154357,3.19,133.54,133.48,22.54495729]
[1764084154664,3.19,133.54,133.46,2.71]
[1764084155365,0.05026493,133.51,133.49,0.04952208]
[1764084156059,3.24026493,133.51,133.49,0.04952208]
[1764084156364,0.05026493,133.51,133.49,0.04952208]
[1764084157066,0.05026493,133.51,133.49,2.75952208]
[1764084157267,3.19,133.55,133.49,2.75952208]
[1764084157766,3.19,133.55,133.49,0.04952208]
[1764084157966,3.19,133.53,133.49,0.04952208]
[1764084158166,0.05590992,133.52,133.49,0.04952208]
[1764084158762,3.24590992,133.52,133.49,0.04952208]
[1764084159160,3.19,133.5,133.4,28.87]
[1764084159357,9.935,133.5,133.4,35.6197]
[1764084159561,9.935,133.5,133.4,28.87]
[1764084159965,3.19,133.5,133.41,9.4591]
[1764084160171,0.05110236,133.47,133.44,0.05697788]
[1764084160562,0.05110236,133.47,133.44,2.76697788]
[1764084161268,0.05110236,133.47,133.44,25.75493786]
[1764084161476,3.19,133.54,133.46,2.71]
[1764084161669,104.8509,133.59,133.46,2.71]
[1764084161670,3.19,133.59,133.48,2.71]
[1764084161966,3.19,133.58,133.49,62.0]
[1764084162367,3.19,133.54,133.52,0.04919878]
[1764084162561,9.9328,133.54,133.52,0.04919878]
[1764084162761,3.19,133.53,133.52,0.04919878]
[1764084162967,3.24490366,133.55,133.52,0.04919878]
[1764084163167,3.19,133.54,133.52,0.04919878]
[1764084164270,3.24490366,133.55,133.52,0.04919878]
[1764084165969,0.05490366,133.55,133.52,0.04919878]
[1764084166169,0.05490366,133.55,133.52,2.75919878]
[1764084166365,0.05490366,133.55,133.52,9.50279878]
[1764084166873,0.05490366,133.55,133.53,2.71]
[1764084167063,3.19,133.61,133.54,2.71]
[1764084167374,3.03,133.6,133.51,2.71]
[1764084167574,9.77,133.6,133.52,6.7436]
[1764084167870,3.03,133.6,133.51,2.71]
[1764084168076,0.05227192,133.57,133.54,0.05199818]
[1764084171376,3.08227192,133.57,133.54,0.05199818]
[1764084171977,3.03,133.56,133.54,0.05199818]
[1764084172174,0.05227192,133.57,133.54,0.05199818]
[1764084172380,3.08227192,133.57,133.54,0.05199818]
[1764084173480,9.7718,133.56,133.54,0.05199818]
[1764084173671,3.03,133.55,133.54,0.05199818]
[1764084174477,6.7418,133.56,133.54,0.05199818]
[1764084174872,3.03,133.55,133.54,0.05199818]
[1764084175067,9.7718,133.56,133.54,0.05199818]
[1764084175272,0.05227192,133.57,133.54,2.76199818]
[1764084176679,3.08227192,133.57,133.54,0.05199818]
[1764084178983,3.2,133.55,133.54,0.05199818]
[1764084179781,6.7417,133.56,133.54,0.05199818]
[1764084180280,0.05227192,133.57,133.5,2.71]
[1764084180473,3.2,133.56,133.49,64.71]
[1764084180678,108.0743,133.56,133.49,64.71]
[1764084180877,108.0743,133.56,133.48,1.86906]
[1764084180878,6.7448,133.5,133.48,1.86906]
[1764084181078,9.9448,133.5,133.48,1.86906]
[1764084181585,3.2,133.49,133.48,0.04846202]
[1764084182483,9.9452,133.49,133.48,0.04846202]
[1764084183481,3.2,133.49,133.48,0.04846202]
[1764084184278,3.2,133.48,133.42,62.0]
[1764084184476,104.9661,133.44,133.37,2.76]
[1764084184782,3.2,133.46,133.37,2.76]
[1764084184987,6.7477,133.45,133.37,2.76]
[1764084185590,0.05452267,133.42,133.4,2.81729086]
[1764084185792,0.04926404,133.42,133.4,2.81729086]
[1764084186281,0.04926404,133.42,133.4,24.91470277]
[1764084186477,0.04926404,133.42,133.4,0.05729086]
[1764084187988,3.24926404,133.42,133.4,0.05729086]
[1764084188189,0.04926404,133.42,133.4,0.05729086]
[1764084188580,0.04926404,133.42,133.4,25.47922698]
[1764084188881,0.04926404,133.42,133.41,2.76]
[1764084189486,6.7463,133.47,133.41,4.26]
[1764084189686,3.2,133.48,133.41,2.76]
[1764084190390,0.05497583,133.46,133.43,0.0514064]
[1764084190783,0.05497583,133.46,133.43,2.8114064]
[1764084192090,3.2,133.51,133.43,2.8114064]
[1764084192491,9.9443,133.51,133.44,6.7475]
[1764084192688,3.2,133.51,133.44,2.76]
[1764084192996,3.25474441,133.49,133.46,0.04760899]
[1764084195199,0.05474441,133.49,133.46,2.80760899]
[1764084195692,0.05474441,133.49,133.48,2.76]
[1764084195881,3.2,133.56,133.48,2.76]
[1764084196289,9.9418,133.56,133.48,2.76]
[1764084196488,3.2,133.55,133.48,2.76]
[1764084196889,0.04945473,133.53,133.5,0.04957804]
[1764084197092,3.12945473,133.53,133.5,0.04957804]
[1764084198096,3.08,133.51,133.43,6.7479]
[1764084198299,3.08,133.51,133.42,64.76]
[1764084198695,3.08,133.51,133.44,2.8]
[1764084199187,0.04957372,133.49,133.46,2.85033184]
[1764084200094,3.12957372,133.49,133.46,0.05033184]
[1764084200394,0.04957372,133.49,133.46,2.85033184]
[1764084203204,0.04957372,133.49,133.47,2.8]
[1764084204002,3.12957372,133.49,133.46,0.05033184]
[1764084204198,0.04957372,133.49,133.46,2.85033184]
[1764084205198,3.12957372,133.49,133.46,0.05033184]
[1764084205401,6.7464,133.48,133.46,0.05033184]
[1764084205704,3.08,133.47,133.46,0.05033184]
[1764084205904,6.7464,133.48,133.46,0.05033184]
[1764084206093,9.8264,133.48,133.46,0.05033184]
[1764084206597,6.7464,133.48,133.46,0.05033184]
[1764084207397,0.04957372,133.49,133.46,2.85033184]
[1764084210602,3.08,133.57,133.49,2.76]
[1764084210799,9.8205,133.6,133.51,2.76]
[1764084210998,3.08,133.6,133.52,2.76]
[1764084211198,0.95307,133.56,133.52,2.76]
[1764084211395,0.95307,133.56,133.53,2.76]
[1764084211599,0.95307,133.56,133.53,2.81755189]
[1764084211903,1.00207586,133.56,133.53,2.81755189]
[1764084212204,4.08207586,133.56,133.53,0.05755189]
[1764084212504,7.74467586,133.56,133.53,0.05755189]
[1764084212805,10.82467586,133.56,133.53,0.05755189]
[1764084214097,3.08,133.54,133.49,62.0]
[1764084214304,3.08,133.54,133.46,2.81]
[1764084214503,3.08,133.54,133.47,2.81]
[1764084214699,9.8238,133.54,133.47,2.81]
[1764084215307,0.0544203,133.52,133.49,0.05357767]
[1764084215704,3.1344203,133.52,133.49,0.05357767]
[1764084215903,9.8790203,133.52,133.49,0.05357767]
[1764084216406,0.0544203,133.52,133.49,2.86357767]
[1764084217309,0.0544203,133.52,133.49,0.05357767]
[1764084217805,0.0544203,133.52,133.49,2.86357767]
[1764084218007,0.0544203,133.52,133.49,0.05357767]
[1764084218212,3.1344203,133.52,133.49,0.05357767]
[1764084218707,0.0544203,133.52,133.49,0.05357767]
[1764084218905,3.1344203,133.52,133.49,0.05357767]
[1764084220113,0.0544203,133.52,133.49,2.86357767]
[1764084221519,0.0544203,133.52,133.5,9.5553]
[1764084222115,0.0544203,133.52,133.51,2.81]
[1764084222306,0.95307,133.56,133.52,2.81]
[1764084222809,0.95307,133.56,133.52,9.5542]
[1764084223010,0.95307,133.56,133.52,2.81]
[1764084223309,0.05180555,133.55,133.54,2.81]
[1764084223818,0.05180555,133.55,133.54,9.5533]
[1764084224311,3.08,133.59,133.55,6.7426]
[1764084224514,3.08,133.59,133.54,2.81]
[1764084224710,6.7384,133.64,133.58,6.7412]
[1764084224917,9.8184,133.64,133.58,6.7412]
[1764084225111,9.8184,133.64,133.56,28.95]
[1764084225412,0.05014637,133.61,133.59,0.0561505]
[1764084225615,3.13014637,133.61,133.59,0.0561505]
[1764084225913,3.08,133.6,133.59,0.0561505]
[1764084226118,3.08,133.6,133.53,2.81]
[1764084226317,9.8219,133.57,133.5,35.6952]
[1764084226519,9.8219,133.57,133.5,28.95]
[1764084226918,9.8219,133.57,133.5,35.6952]
[1764084227106,0.05495502,133.55,133.52,0.05399381]
[1764084227306,0.05495502,133.55,133.52,2.87399381]
[1764084228318,0.05495502,133.55,133.53,2.82]
[1764084230420,3.23,133.61,133.54,2.82]
[1764084230926,6.7368,133.67,133.55,9.5624]
[1764084231124,6.7368,133.67,133.53,104.9023]
[1764084231125,3.23,133.67,133.52,2.82]
[1764084231325,3.23,133.65,133.53,2.82]
[1764084231518,3.28493045,133.6,133.58,0.05081796]
[1764084231719,3.28035561,133.6,133.58,0.05081796]
[1764084232621,3.23,133.68,133.58,2.87081796]
[1764084232828,3.23,133.68,133.61,2.82]
[1764084233021,3.23,133.68,133.63,9.5585]
[1764084233229,111.14,133.75,133.61,104.8387]
[1764084233230,3.23,133.73,133.64,2.82]
[1764084233425,3.23,133.73,133.64,24.82380125]
[1764084233732,3.23,133.69,133.57,2.87]
[1764084233928,3.23,133.66,133.57,2.87]
[1764084234230,3.23,133.63,133.55,26.14]
[1764084234423,3.23,133.63,133.54,2.87]
[1764084234826,3.28187721,133.6,133.57,0.05676321]
[1764084236127,0.05187721,133.6,133.57,0.05676321]
[1764084236425,0.05187721,133.6,133.57,2.92676321]
[1764084236826,0.05187721,133.6,133.57,9.66836321]
[1764084237135,0.05187721,133.6,133.57,2.92676321]
[1764084237531,0.05187721,133.6,133.57,0.05676321]
[1764084237836,3.28187721,133.6,133.57,0.05676321]
[1764084239132,2.94,133.59,133.57,0.05676321]
[1764084240219,2.94,133.59,133.5,9.6151]
[1764084240426,2.94,133.58,133.47,29.06]
[1764084240626,2.94,133.58,133.48,2.92]
[1764084240826,2.94,133.55,133.48,2.92]
[1764084241130,2.94,133.55,133.45,2.92]
[1764084241323,0.05006414,133.51,133.49,0.05661226]
[1764084241530,0.05006414,133.51,133.49,2.97661226]
[1764084242222,2.94,133.55,133.49,2.97661226]
[1764084243328,0.05081799,133.53,133.5,2.92]
[1764084243634,0.05737163,133.53,133.51,6.7447]
[1764084244043,2.99737163,133.53,133.5,0.05106826]
[1764084244333,0.05737163,133.53,133.5,0.05106826]
[1764084244723,0.05737163,133.53,133.5,2.97106826]
[1764084245228,0.05737163,133.53,133.51,9.6646]
[1764084245428,0.05737163,133.53,133.52,2.92]
[1764084245630,2.94,133.59,133.53,2.92]
[1764084246029,2.94,133.59,133.54,6.7431]
[1764084246337,2.94,133.59,133.49,2.92]
[1764084246538,2.94,133.54,133.53,0.05037977]
[1764084247433,2.94,133.54,133.48,6.746]
[1764084247434,2.94,133.53,133.47,23.03784792]
[1764084247629,2.94,133.53,133.46,2.97]
[1764084248032,2.94,133.53,133.47,6.7467]
[1764084248536,0.05547609,133.51,133.49,0.05303446]
[1764084251334,2.99547609,133.51,133.49,0.05303446]
[1764084252238,0.05547609,133.51,133.49,0.05303446]
[1764084252433,0.05547609,133.51,133.49,3.02303446]
[1764084254337,0.05547609,133.51,133.49,62.05303446]
[1764084254537,0.05547609,133.51,133.49,0.05303446]
[1764084254731,0.05547609,133.51,133.49,3.02303446]
[1764084256238,0.05547609,133.51,133.49,9.76873446]
[1764084256440,0.05547609,133.51,133.5,2.97]
[1764084257145,0.05547609,133.51,133.49,0.05303446]
[1764084258044,0.05547609,133.51,133.49,3.03303446]
[1764084259051,0.05547609,133.51,133.49,9.77883446]
[1764084259245,0.05547609,133.51,133.5,2.98]
[1764084259439,2.94,133.55,133.5,2.98]
[1764084260048,3.09,133.59,133.52,2.98]
[1764084260450,0.05342925,133.57,133.54,9.77465302]
[1764084260651,0.05342925,133.57,133.54,3.03135302]
[1764084261048,3.14342925,133.57,133.54,0.05135302]
[1764084261452,0.05342925,133.57,133.54,3.03135302]
[1764084261946,0.05342925,133.57,133.55,9.7225]
[1764084262141,0.05342925,133.57,133.54,0.05135302]
[1764084262454,0.05342925,133.57,133.54,3.03135302]
[1764084263556,0.05342925,133.57,133.54,9.77465302]
[1764084263757,0.05342925,133.57,133.55,2.98]
[1764084264054,0.05342925,133.57,133.54,0.05135302]
[1764084264355,0.05342925,133.57,133.54,3.03135302]
[1764084264744,0.05342925,133.57,133.54,0.05135302]
[1764084264956,0.05342925,133.57,133.54,3.03135302]
[1764084267850,0.05342925,133.57,133.54,9.77465302]
[1764084268543,0.05342925,133.57,133.55,9.7227]
[1764084268742,0.05342925,133.57,133.56,2.98]
[1764084268956,0.05342925,133.57,133.55,6.7427]
[1764084269349,3.09,133.62,133.55,104.8881]
[1764084269550,3.09,133.65,133.58,2.98]
[1764084269756,3.09,133.69,133.61,2.98]
[1764084269948,3.09,133.69,133.61,9.7194]
[1764084270259,3.09,133.69,133.58,29.12]
[1764084270452,3.09,133.64,133.62,0.04936617]
[1764084271150,0.05594415,133.65,133.62,0.04936617]
[1764084271558,3.14594415,133.65,133.62,0.04936617]
[1764084273454,9.88374415,133.65,133.62,0.04936617]
[1764084273654,3.09,133.64,133.62,0.04936617]
[1764084274257,0.05594415,133.65,133.62,0.04936617]
[1764084274458,3.14594415,133.65,133.62,0.04936617]
[1764084275060,9.88384415,133.65,133.62,0.04936617]
[1764084275253,3.09,133.64,133.62,0.04936617]
[1764084275655,9.8284,133.64,133.62,0.04936617]
[1764084275859,3.09,133.63,133.56,2.98]
[1764084276161,3.09,133.63,133.56,9.7222]
[1764084276557,3.09,133.63,133.56,2.98]
[1764084276754,3.14003171,133.61,133.58,0.05384161]
[1764084276954,3.13861258,133.61,133.58,0.05179587]
[1764084277358,3.13861258,133.61,133.58,6.79309587]